[Event "Live Chess"]
[Site "Chess.com"]
[Date "2023.05.20"]
[Round "-"]
[White "ACx04"]
[Black "JanMur7"]
[Result "0-1"]
[WhiteElo "423"]
[BlackElo "1947"]
[TimeControl "300"]
[EndTime "10:46:08 PDT"]
[Termination "JanMur7 won by checkmate"]

1. e4 {[%clk 0:04:58.8]} 1... e5 {[%clk 0:04:57.6]} 2. Bc4 {[%clk 0:04:58.2]}
2... Nc6 {[%clk 0:04:56.8]} 3. Nf3 {[%clk 0:04:54.7]} 3... Bc5 {[%clk
0:04:55.2]} 4. O-O {[%clk 0:04:51.4]} 4... Nf6 {[%clk 0:04:53.8]} 5. Ng5 {[%clk
0:04:49.8]} 5... O-O {[%clk 0:04:51.5]} 6. Bxf7+ {[%clk 0:04:46.6]} 6... Rxf7
{[%clk 0:04:51.4]} 7. Nxf7 {[%clk 0:04:45.4]} 7... Kxf7 {[%clk 0:04:51.3]} 8.
Qf3 {[%clk 0:04:41.6]} 8... d6 {[%clk 0:04:50.1]} 9. Nc3 {[%clk 0:04:40.3]} 9...
Nd4 {[%clk 0:04:47.6]} 10. Qd1 {[%clk 0:04:33.2]} 10... Bg4 {[%clk 0:04:44.8]}
11. f3 {[%clk 0:04:31.7]} 11... Nxf3+ {[%clk 0:04:43.2]} 12. Kh1 {[%clk
0:04:10.2]} 12... Nxh2 {[%clk 0:04:39]} 13. Kxh2 {[%clk 0:04:07.5]} 13... Bxd1
{[%clk 0:04:36.8]} 14. Rxd1 {[%clk 0:04:04.6]} 14... Ng4+ {[%clk 0:04:36.7]} 15.
Kh3 {[%clk 0:04:02.6]} 15... Nf2+ {[%clk 0:04:31.1]} 16. Kg3 {[%clk 0:03:55.6]}
16... Qg5+ {[%clk 0:04:30]} 17. Kh2 {[%clk 0:03:51.8]} 17... Qh4+ {[%clk
0:04:28.6]} 18. Kg1 {[%clk 0:03:50]} 18... Qh1# {[%clk 0:04:28.5]} 0-1

[Event "Live Chess"]
[Site "Chess.com"]
[Date "2023.05.20"]
[Round "-"]
[White "matt1979"]
[Black "Reggie016"]
[Result "1-0"]
[WhiteElo "1459"]
[BlackElo "1073"]
[TimeControl "300"]
[EndTime "10:46:09 PDT"]
[Termination "matt1979 won by checkmate"]

1. f4 {[%clk 0:04:58.6]} 1... e6 {[%clk 0:04:52.7]} 2. Nf3 {[%clk 0:04:52.7]}
2... f5 {[%clk 0:04:48.9]} 3. e3 {[%clk 0:04:41.1]} 3... Be7 {[%clk 0:04:47.3]}
4. Be2 {[%clk 0:04:35]} 4... Nf6 {[%clk 0:04:46.7]} 5. O-O {[%clk 0:04:33.3]}
5... O-O {[%clk 0:04:46.5]} 6. d3 {[%clk 0:04:31.3]} 6... b6 {[%clk 0:04:44.4]}
7. Nc3 {[%clk 0:04:29.6]} 7... Bb7 {[%clk 0:04:44]} 8. Qe1 {[%clk 0:04:17.6]}
8... d6 {[%clk 0:04:42.7]} 9. b3 {[%clk 0:04:05.2]} 9... Nbd7 {[%clk 0:04:42]}
10. Bb2 {[%clk 0:04:04]} 10... e5 {[%clk 0:04:38.1]} 11. Ng5 {[%clk 0:03:38.2]}
11... Qe8 {[%clk 0:04:04.1]} 12. Ne6 {[%clk 0:03:34.2]} 12... Qg6 {[%clk
0:04:03.5]} 13. Qf2 {[%clk 0:03:20.9]} 13... Rfc8 {[%clk 0:03:55.7]} 14. Bf3
{[%clk 0:03:06]} 14... Bxf3 {[%clk 0:03:52.4]} 15. Qxf3 {[%clk 0:03:04.6]} 15...
Ng4 {[%clk 0:03:38.1]} 16. Nxc7 {[%clk 0:02:56.6]} 16... Rxc7 {[%clk 0:03:34.3]}
17. Qxa8+ {[%clk 0:02:54.8]} 17... Kf7 {[%clk 0:03:32.5]} 18. Qd5+ {[%clk
0:02:51.8]} 18... Kf8 {[%clk 0:03:26.7]} 19. Rae1 {[%clk 0:02:34]} 19... Rc5
{[%clk 0:03:20.3]} 20. Qf3 {[%clk 0:02:25.6]} 20... Qh6 {[%clk 0:03:08.7]} 21.
h3 {[%clk 0:02:20.9]} 21... Ngf6 {[%clk 0:03:00.7]} 22. fxe5 {[%clk 0:02:17.2]}
22... dxe5 {[%clk 0:02:59.4]} 23. Ne2 {[%clk 0:02:03.7]} 23... Rxc2 {[%clk
0:02:56.7]} 24. Bc3 {[%clk 0:01:53.6]} 24... Rxa2 {[%clk 0:02:48.2]} 25. Ra1
{[%clk 0:01:46.8]} 25... Rxa1 {[%clk 0:02:47.1]} 26. Rxa1 {[%clk 0:01:45]} 26...
a5 {[%clk 0:02:47]} 27. b4 {[%clk 0:01:40.9]} 27... axb4 {[%clk 0:02:41.1]} 28.
Bd2 {[%clk 0:01:30.9]} 28... Kf7 {[%clk 0:02:39.4]} 29. Rd1 {[%clk 0:01:24.1]}
29... g5 {[%clk 0:02:30.4]} 30. Ng3 {[%clk 0:01:09.7]} 30... f4 {[%clk
0:02:25.7]} 31. Nf5 {[%clk 0:01:06.4]} 31... Qf8 {[%clk 0:02:20]} 32. Nxe7
{[%clk 0:01:03.6]} 32... Qxe7 {[%clk 0:02:19.1]} 33. Rb1 {[%clk 0:00:59.7]}
33... Nc5 {[%clk 0:02:10.9]} 34. Bxb4 {[%clk 0:00:56.8]} 34... Qc7 {[%clk
0:01:58]} 35. Rc1 {[%clk 0:00:53.9]} 35... Nfd7 {[%clk 0:01:54.7]} 36. d4 {[%clk
0:00:51.3]} 36... exd4 {[%clk 0:01:53.6]} 37. exd4 {[%clk 0:00:50.2]} 37... Qd6
{[%clk 0:01:43.2]} 38. dxc5 {[%clk 0:00:46.9]} 38... Qd4+ {[%clk 0:01:42.3]} 39.
Qf2 {[%clk 0:00:39.3]} 39... Qxb4 {[%clk 0:01:39.9]} 40. cxb6 {[%clk 0:00:36.9]}
40... Nxb6 {[%clk 0:01:36.6]} 41. Rc7+ {[%clk 0:00:34.1]} 41... Kg6 {[%clk
0:01:33.3]} 42. Qc2+ {[%clk 0:00:31.5]} 42... Kh5 {[%clk 0:01:25.7]} 43. Qxh7#
{[%clk 0:00:29.3]} 1-0

[Event "Live Chess"]
[Site "Chess.com"]
[Date "2023.05.20"]
[Round "-"]
[White "Brooms1989"]
[Black "Conradical12"]
[Result "1-0"]
[WhiteElo "1001"]
[BlackElo "1519"]
[TimeControl "300"]
[EndTime "10:46:12 PDT"]
[Termination "Brooms1989 won by resignation"]

1. e4 {[%clk 0:04:57.8]} 1... e5 {[%clk 0:04:58.7]} 2. Nc3 {[%clk 0:04:55]} 2...
Nc6 {[%clk 0:04:56.3]} 3. Bc4 {[%clk 0:04:49]} 3... Nf6 {[%clk 0:04:54.5]} 4. d3
{[%clk 0:04:42.8]} 4... Bc5 {[%clk 0:04:50.9]} 5. Nf3 {[%clk 0:04:40.2]} 5...
Ng4 {[%clk 0:04:46.9]} 6. O-O {[%clk 0:04:37.6]} 6... d6 {[%clk 0:04:44.5]} 7.
a3 {[%clk 0:04:30]} 7... a5 {[%clk 0:04:41]} 8. Bd2 {[%clk 0:04:24.8]} 8... h5
{[%clk 0:04:37.9]} 9. h3 {[%clk 0:04:21.6]} 9... Bd7 {[%clk 0:04:34.4]} 10.
Bxf7+ {[%clk 0:03:42.9]} 10... Kxf7 {[%clk 0:04:27.6]} 11. Ng5+ {[%clk
0:03:41.9]} 11... Ke8 {[%clk 0:04:25.8]} 12. Qf3 {[%clk 0:03:40.1]} 12... Qf6
{[%clk 0:04:23.2]} 13. Qxf6 {[%clk 0:03:32.3]} 13... gxf6 {[%clk 0:04:21.4]} 14.
Nd5 {[%clk 0:03:30.4]} 14... fxg5 {[%clk 0:04:15.5]} 15. hxg4 {[%clk 0:03:29.2]}
15... Rc8 {[%clk 0:04:08.4]} 16. Bxg5 {[%clk 0:03:23.3]} 16... hxg4 {[%clk
0:04:04.3]} 17. Nf6+ {[%clk 0:03:18.1]} 17... Kf7 {[%clk 0:04:02.8]} 18. Nxd7
{[%clk 0:03:16.2]} 18... Ba7 {[%clk 0:03:47.3]} 19. Be3 {[%clk 0:03:04.7]} 19...
Ke7 {[%clk 0:03:36.2]} 20. Bxa7 {[%clk 0:02:57.6]} 20... Nxa7 {[%clk 0:03:34.5]}
21. f4 {[%clk 0:02:55.7]} 21... Kxd7 {[%clk 0:03:32.2]} 22. fxe5 {[%clk
0:02:54.3]} 22... dxe5 {[%clk 0:03:31.2]} 23. Rf7+ {[%clk 0:02:53.2]} 23... Ke6
{[%clk 0:03:30.1]} 24. Raf1 {[%clk 0:02:52.3]} 24... Rh6 {[%clk 0:03:26.3]} 25.
Rg7 {[%clk 0:02:45.5]} 25... Rch8 {[%clk 0:03:20.2]} 26. Rff7 {[%clk 0:02:27.2]}
26... Nc6 {[%clk 0:03:11.3]} 27. Rxc7 {[%clk 0:02:19.1]} 27... Rf6 {[%clk
0:02:45.3]} 28. Rxb7 {[%clk 0:02:08]} 28... Nd4 {[%clk 0:02:32.9]} 29. Rb6+
{[%clk 0:02:00.3]} 1-0

[Event "Live Chess"]
[Site "Chess.com"]
[Date "2023.05.20"]
[Round "-"]
[White "Ninifu"]
[Black "DerbyKnight"]
[Result "1-0"]
[WhiteElo "1987"]
[BlackElo "1594"]
[TimeControl "300"]
[EndTime "10:46:20 PDT"]
[Termination "Ninifu won by resignation"]

1. d4 {[%clk 0:04:56.9]} 1... d5 {[%clk 0:04:58.4]} 2. c4 {[%clk 0:04:55.5]}
2... e6 {[%clk 0:04:57.1]} 3. Nc3 {[%clk 0:04:51.5]} 3... Nf6 {[%clk 0:04:55]}
4. cxd5 {[%clk 0:04:50.4]} 4... exd5 {[%clk 0:04:53.1]} 5. Bg5 {[%clk
0:04:49.6]} 5... c6 {[%clk 0:04:51.9]} 6. e3 {[%clk 0:04:48.9]} 6... Be7 {[%clk
0:04:49.9]} 7. Bd3 {[%clk 0:04:48.2]} 7... h6 {[%clk 0:04:46.6]} 8. Bf4 {[%clk
0:04:42.2]} 8... O-O {[%clk 0:04:40.4]} 9. h3 {[%clk 0:04:30]} 9... Bd6 {[%clk
0:04:31.8]} 10. Be5 {[%clk 0:04:17.1]} 10... Re8 {[%clk 0:04:19.6]} 11. Nf3
{[%clk 0:04:14.9]} 11... Qc7 {[%clk 0:04:12.9]} 12. O-O {[%clk 0:04:04.2]} 12...
Be6 {[%clk 0:04:08.6]} 13. Rc1 {[%clk 0:04:00.1]} 13... Nbd7 {[%clk 0:04:08]}
14. Nb5 {[%clk 0:03:58.3]} 1-0

[Event "Live Chess"]
[Site "Chess.com"]
[Date "2023.05.20"]
[Round "-"]
[White "Supertromp"]
[Black "Dark_Night123"]
[Result "1-0"]
[WhiteElo "2183"]
[BlackElo "1575"]
[TimeControl "300"]
[EndTime "10:46:30 PDT"]
[Termination "Supertromp won by resignation"]

1. e4 {[%clk 0:04:58.3]} 1... e5 {[%clk 0:04:59.4]} 2. Nf3 {[%clk 0:04:54.8]}
2... Nc6 {[%clk 0:04:58.8]} 3. Bc4 {[%clk 0:04:54.2]} 3... Nf6 {[%clk 0:04:58]}
4. d3 {[%clk 0:04:53.6]} 4... Bc5 {[%clk 0:04:57.3]} 5. O-O {[%clk 0:04:52.2]}
5... d6 {[%clk 0:04:56.5]} 6. c3 {[%clk 0:04:50.3]} 6... Bg4 {[%clk 0:04:55.4]}
7. a4 {[%clk 0:04:41.5]} 7... a5 {[%clk 0:04:53.8]} 8. Nbd2 {[%clk 0:04:30.3]}
8... Qe7 {[%clk 0:04:43.8]} 9. Re1 {[%clk 0:04:20.4]} 9... h5 {[%clk 0:04:38.7]}
10. h3 {[%clk 0:04:06.8]} 10... Be6 {[%clk 0:04:37.5]} 11. Bxe6 {[%clk
0:03:54.5]} 11... Qxe6 {[%clk 0:04:37.4]} 12. Nb3 {[%clk 0:03:44]} 12... Ba7
{[%clk 0:04:30.6]} 13. d4 {[%clk 0:03:42.9]} 13... exd4 {[%clk 0:04:26.7]} 14.
cxd4 {[%clk 0:03:41.6]} 14... O-O-O {[%clk 0:04:17.4]} 15. d5 {[%clk 0:03:39.9]}
15... Nxd5 {[%clk 0:04:02]} 16. exd5 {[%clk 0:03:37.7]} 1-0

[Event "Live Chess"]
[Site "Chess.com"]
[Date "2023.05.20"]
[Round "-"]
[White "SavagePawn7"]
[Black "gmnorfolk"]
[Result "0-1"]
[WhiteElo "750"]
[BlackElo "2135"]
[TimeControl "300"]
[EndTime "10:46:36 PDT"]
[Termination "gmnorfolk won by resignation"]

1. e4 {[%clk 0:04:56.3]} 1... e5 {[%clk 0:04:58.6]} 2. d4 {[%clk 0:04:53.7]}
2... exd4 {[%clk 0:04:56.6]} 3. c3 {[%clk 0:04:52]} 3... Qe7 {[%clk 0:04:54.9]}
4. Bc4 {[%clk 0:04:32.1]} 4... d5 {[%clk 0:04:12]} 5. Bxd5 {[%clk 0:04:22.5]}
5... Nf6 {[%clk 0:04:10.2]} 6. Qe2 {[%clk 0:04:18.2]} 6... Nxd5 {[%clk
0:04:06.4]} 7. exd5 {[%clk 0:04:15.2]} 7... Qxe2+ {[%clk 0:04:05.3]} 8. Nxe2
{[%clk 0:04:14]} 8... dxc3 {[%clk 0:04:00.4]} 9. Nbxc3 {[%clk 0:04:11.1]} 9...
Bd6 {[%clk 0:03:53.6]} 10. Bf4 {[%clk 0:04:06.5]} 10... Bxf4 {[%clk 0:03:50.6]}
11. Nxf4 {[%clk 0:04:04.1]} 11... O-O {[%clk 0:03:50.5]} 12. O-O-O {[%clk
0:03:56.9]} 12... Bf5 {[%clk 0:03:48]} 13. Rhe1 {[%clk 0:03:52.4]} 13... Nd7
{[%clk 0:03:44]} 14. h3 {[%clk 0:03:47.6]} 14... h6 {[%clk 0:03:41.6]} 15. g4
{[%clk 0:03:46.4]} 15... Bh7 {[%clk 0:03:40.7]} 16. f3 {[%clk 0:03:42.3]} 16...
Nb6 {[%clk 0:03:33.6]} 17. b3 {[%clk 0:03:34.6]} 17... a5 {[%clk 0:03:29.5]} 18.
a4 {[%clk 0:03:32.9]} 18... Rac8 {[%clk 0:03:22.9]} 19. Nb5 {[%clk 0:03:25.2]}
19... Rfd8 {[%clk 0:03:19.1]} 20. Nc3 {[%clk 0:03:20.6]} 20... Rd6 {[%clk
0:03:14.4]} 21. Ne4 {[%clk 0:03:10.1]} 21... Bxe4 {[%clk 0:03:04.2]} 22. fxe4
{[%clk 0:03:05.1]} 22... c6 {[%clk 0:03:04.1]} 23. dxc6 {[%clk 0:02:53.1]} 23...
Rdxc6+ {[%clk 0:02:59.6]} 24. Kb1 {[%clk 0:02:45.8]} 24... Rc3 {[%clk
0:02:54.4]} 25. Rd3 {[%clk 0:02:41.9]} 25... Rxd3 {[%clk 0:02:53.3]} 26. Nxd3
{[%clk 0:02:40]} 26... Rc3 {[%clk 0:02:52.9]} 27. Re3 {[%clk 0:02:11.9]} 27...
Rxb3+ {[%clk 0:02:50.4]} 28. Ka2 {[%clk 0:02:10.7]} 28... Rc3 {[%clk 0:02:45.7]}
29. Kb2 {[%clk 0:02:05.7]} 29... Rc4 {[%clk 0:02:42.1]} 30. Ne5 {[%clk 0:02:02]}
30... Rxa4 {[%clk 0:02:38.1]} 31. Rd3 {[%clk 0:01:54.3]} 31... Nc4+ {[%clk
0:02:35.9]} 32. Kb3 {[%clk 0:01:48.3]} 32... Rb4+ {[%clk 0:02:32.6]} 33. Kc2
{[%clk 0:01:45]} 33... Nxe5 {[%clk 0:02:31.5]} 34. Rd8+ {[%clk 0:01:38.5]} 34...
Kh7 {[%clk 0:02:30.4]} 0-1

[Event "Live Chess"]
[Site "Chess.com"]
[Date "2023.05.20"]
[Round "-"]
[White "flyingpuffins"]
[Black "Pablo_dmp"]
[Result "1-0"]
[WhiteElo "1982"]
[BlackElo "1865"]
[TimeControl "300"]
[EndTime "10:46:38 PDT"]
[Termination "flyingpuffins won by checkmate"]

1. e4 {[%clk 0:04:59.3]} 1... c5 {[%clk 0:04:58.9]} 2. Nf3 {[%clk 0:04:58.4]}
2... Nc6 {[%clk 0:04:56.5]} 3. Bb5 {[%clk 0:04:56.1]} 3... g6 {[%clk 0:04:54.2]}
4. O-O {[%clk 0:04:54]} 4... Bg7 {[%clk 0:04:52.9]} 5. c3 {[%clk 0:04:52.9]}
5... e6 {[%clk 0:04:50.9]} 6. d4 {[%clk 0:04:51.6]} 6... cxd4 {[%clk 0:04:49.4]}
7. cxd4 {[%clk 0:04:51.5]} 7... d5 {[%clk 0:04:46.1]} 8. e5 {[%clk 0:04:50.4]}
8... Ne7 {[%clk 0:04:44.6]} 9. Nc3 {[%clk 0:04:49.5]} 9... O-O {[%clk
0:04:43.7]} 10. h4 {[%clk 0:04:48.6]} 10... Bd7 {[%clk 0:04:39]} 11. h5 {[%clk
0:04:47.8]} 11... Nf5 {[%clk 0:04:37.4]} 12. hxg6 {[%clk 0:04:45.5]} 12... fxg6
{[%clk 0:04:35.5]} 13. Bd3 {[%clk 0:04:44.8]} 13... Nfxd4 {[%clk 0:04:32.5]} 14.
Nxd4 {[%clk 0:04:42.8]} 14... Nxd4 {[%clk 0:04:29.1]} 15. Bxg6 {[%clk
0:04:42.3]} 15... Nc6 {[%clk 0:04:24.7]} 16. Bc2 {[%clk 0:04:38.1]} 16... Nxe5
{[%clk 0:04:17.6]} 17. Qh5 {[%clk 0:04:36.3]} 17... h6 {[%clk 0:04:12.1]} 18.
Bxh6 {[%clk 0:04:32.3]} 18... Qf6 {[%clk 0:04:00.9]} 19. Be3 {[%clk 0:04:23]}
19... Be8 {[%clk 0:03:46.3]} 20. Bh7+ {[%clk 0:04:10.7]} 20... Kh8 {[%clk
0:03:45]} 21. Bg6+ {[%clk 0:04:10.2]} 21... Bh6 {[%clk 0:03:39.3]} 22. Qxh6+
{[%clk 0:04:08.7]} 22... Kg8 {[%clk 0:03:36.7]} 23. Qh7# {[%clk 0:04:07.8]} 1-0

[Event "Live Chess"]
[Site "Chess.com"]
[Date "2023.05.20"]
[Round "-"]
[White "Horseymobile"]
[Black "Hacker_2009"]
[Result "0-1"]
[WhiteElo "1246"]
[BlackElo "1914"]
[TimeControl "300"]
[EndTime "10:46:39 PDT"]
[Termination "Hacker_2009 won by resignation"]

1. d4 {[%clk 0:04:59.6]} 1... Nf6 {[%clk 0:04:58.7]} 2. c4 {[%clk 0:04:57]} 2...
e6 {[%clk 0:04:57.7]} 3. Nc3 {[%clk 0:04:55.3]} 3... d5 {[%clk 0:04:56.9]} 4.
Bg5 {[%clk 0:04:52.3]} 4... Be7 {[%clk 0:04:56.1]} 5. Nf3 {[%clk 0:04:50.4]}
5... O-O {[%clk 0:04:54.3]} 6. Qc2 {[%clk 0:04:49.1]} 6... b6 {[%clk 0:04:53.1]}
7. e3 {[%clk 0:04:46.4]} 7... Bb7 {[%clk 0:04:52.3]} 8. Bd3 {[%clk 0:04:37.7]}
8... c5 {[%clk 0:04:50.9]} 9. Bxf6 {[%clk 0:04:17.7]} 9... Bxf6 {[%clk
0:04:50.8]} 10. Bxh7+ {[%clk 0:04:16.2]} 10... Kh8 {[%clk 0:04:49.4]} 11. Bd3
{[%clk 0:04:14]} 11... cxd4 {[%clk 0:04:48.5]} 12. exd4 {[%clk 0:04:12.4]} 12...
dxc4 {[%clk 0:04:47.6]} 13. Bxc4 {[%clk 0:04:04.9]} 13... Bxf3 {[%clk
0:04:47.1]} 14. gxf3 {[%clk 0:04:02]} 14... Qxd4 {[%clk 0:04:46.7]} 15. Qe4
{[%clk 0:03:53.3]} 15... Qxe4+ {[%clk 0:04:41.5]} 16. Nxe4 {[%clk 0:03:51.8]}
16... Bxb2 {[%clk 0:04:40.1]} 17. Rb1 {[%clk 0:03:50.1]} 17... Be5 {[%clk
0:04:39]} 18. Rg1 {[%clk 0:03:45.3]} 18... Nc6 {[%clk 0:04:37.7]} 19. Rg5 {[%clk
0:03:39.1]} 19... Nd4 {[%clk 0:04:19.1]} 20. Rh5+ {[%clk 0:03:18.8]} 20... Kg8
{[%clk 0:04:16]} 21. Nd2 {[%clk 0:02:59]} 21... Bf6 {[%clk 0:03:48.4]} 22. Bd3
{[%clk 0:02:49.1]} 22... g6 {[%clk 0:03:47.1]} 23. Rh3 {[%clk 0:02:38.4]} 23...
Rfd8 {[%clk 0:03:45.7]} 24. Ne4 {[%clk 0:02:28.3]} 24... Bg7 {[%clk 0:03:43.1]}
25. Rb4 {[%clk 0:02:21.6]} 25... Nc6 {[%clk 0:03:40.2]} 26. Rc4 {[%clk
0:02:16.5]} 26... Na5 {[%clk 0:03:36.8]} 27. Rc3 {[%clk 0:02:15]} 27... Bxc3+
{[%clk 0:03:35.3]} 0-1

[Event "Live Chess"]
[Site "Chess.com"]
[Date "2023.05.20"]
[Round "-"]
[White "TobyQuaite"]
[Black "JoshMcK"]
[Result "1-0"]
[WhiteElo "1701"]
[BlackElo "1533"]
[TimeControl "300"]
[EndTime "10:46:41 PDT"]
[Termination "TobyQuaite won by resignation"]

1. e4 {[%clk 0:04:59.3]} 1... c6 {[%clk 0:04:58.4]} 2. Nc3 {[%clk 0:04:57.6]}
2... d5 {[%clk 0:04:58.3]} 3. Nf3 {[%clk 0:04:56.4]} 3... Bg4 {[%clk 0:04:56]}
4. d4 {[%clk 0:04:48.9]} 4... Bxf3 {[%clk 0:04:54.3]} 5. Qxf3 {[%clk 0:04:46.8]}
5... e6 {[%clk 0:04:54.2]} 6. Bf4 {[%clk 0:04:42.1]} 6... Nf6 {[%clk 0:04:52.6]}
7. e5 {[%clk 0:04:39.9]} 7... Nfd7 {[%clk 0:04:51.3]} 8. Bd3 {[%clk 0:04:34.1]}
8... c5 {[%clk 0:04:49.3]} 9. Ne2 {[%clk 0:04:18.7]} 9... cxd4 {[%clk
0:04:44.9]} 10. Nxd4 {[%clk 0:04:18.6]} 10... Bc5 {[%clk 0:04:37.5]} 11. Nb3
{[%clk 0:04:14.1]} 11... Bb6 {[%clk 0:04:34.4]} 12. Bg3 {[%clk 0:04:03.6]} 12...
O-O {[%clk 0:04:33.5]} 13. h4 {[%clk 0:03:55.3]} 13... Nc6 {[%clk 0:04:32.9]}
14. Qh5 {[%clk 0:03:42.9]} 14... g6 {[%clk 0:04:26.3]} 15. Qe2 {[%clk
0:03:18.5]} 15... Nd4 {[%clk 0:04:17.3]} 16. Nxd4 {[%clk 0:03:16.3]} 16... Bxd4
{[%clk 0:04:17.2]} 17. O-O-O {[%clk 0:03:13.6]} 17... Qb6 {[%clk 0:04:07.9]} 18.
c3 {[%clk 0:03:07]} 18... Bc5 {[%clk 0:04:04.4]} 19. h5 {[%clk 0:03:06]} 19...
Be7 {[%clk 0:03:58.9]} 20. hxg6 {[%clk 0:03:00]} 20... fxg6 {[%clk 0:03:54.4]}
21. Qg4 {[%clk 0:02:58.5]} 21... Nxe5 {[%clk 0:03:47.3]} 22. Bxe5 {[%clk
0:02:55]} 22... Qxf2 {[%clk 0:03:46.7]} 23. Bxg6 {[%clk 0:02:46.9]} 23... Qe3+
{[%clk 0:03:32.9]} 24. Kb1 {[%clk 0:02:26.1]} 24... Qg5 {[%clk 0:03:29.5]} 25.
Bxh7+ {[%clk 0:02:21.5]} 25... Kf7 {[%clk 0:03:28.6]} 26. Rdf1+ {[%clk
0:02:11.1]} 26... Ke8 {[%clk 0:03:26.9]} 27. Bg6+ {[%clk 0:02:06.2]} 27... Kd7
{[%clk 0:03:25.5]} 28. Qxg5 {[%clk 0:01:56.5]} 28... Bxg5 {[%clk 0:03:25.4]} 29.
Rh7+ {[%clk 0:01:52.9]} 29... Kc6 {[%clk 0:03:23.9]} 30. Rxf8 {[%clk 0:01:45.8]}
30... Rxf8 {[%clk 0:03:23.8]} 31. Bd4 {[%clk 0:01:26.8]} 31... Rf1+ {[%clk
0:03:18]} 32. Kc2 {[%clk 0:01:25.8]} 32... Rc1+ {[%clk 0:03:16.5]} 33. Kb3
{[%clk 0:01:25.3]} 33... a5 {[%clk 0:03:14.8]} 34. Be8+ {[%clk 0:01:19.7]} 34...
Kd6 {[%clk 0:03:13.2]} 35. Rd7+ {[%clk 0:01:14.4]} 35... Kc6 {[%clk 0:03:12.5]}
36. Rg7+ {[%clk 0:01:08.7]} 1-0

[Event "Live Chess"]
[Site "Chess.com"]
[Date "2023.05.20"]
[Round "-"]
[White "OceanFloater"]
[Black "GEMdzq"]
[Result "0-1"]
[WhiteElo "988"]
[BlackElo "2244"]
[TimeControl "300"]
[EndTime "10:46:41 PDT"]
[Termination "GEMdzq won by resignation"]

1. e4 {[%clk 0:04:56.5]} 1... d6 {[%clk 0:04:58.7]} 2. Nf3 {[%clk 0:04:56.2]}
2... Nf6 {[%clk 0:04:56.7]} 3. Nc3 {[%clk 0:04:54.3]} 3... g6 {[%clk 0:04:56.2]}
4. d4 {[%clk 0:04:53]} 4... Bg7 {[%clk 0:04:55.6]} 5. e5 {[%clk 0:04:50.2]} 5...
dxe5 {[%clk 0:04:43.9]} 6. dxe5 {[%clk 0:04:49.3]} 6... Qxd1+ {[%clk 0:04:42.7]}
7. Nxd1 {[%clk 0:04:48.2]} 7... Ng4 {[%clk 0:04:41]} 8. h3 {[%clk 0:04:44.9]}
8... Nxe5 {[%clk 0:04:39.5]} 9. Nxe5 {[%clk 0:04:43.6]} 9... Bxe5 {[%clk
0:04:39.4]} 10. Bh6 {[%clk 0:04:40.4]} 10... Nc6 {[%clk 0:04:35.4]} 11. Ne3
{[%clk 0:04:38.1]} 11... Be6 {[%clk 0:04:30.7]} 12. c3 {[%clk 0:04:36.4]} 12...
O-O-O {[%clk 0:04:27.2]} 13. Be2 {[%clk 0:04:34.1]} 13... f6 {[%clk 0:04:23.4]}
14. Bg7 {[%clk 0:04:21.8]} 14... Rhg8 {[%clk 0:04:21.6]} 15. Bh6 {[%clk
0:04:18.7]} 15... g5 {[%clk 0:04:20.7]} 16. Bg4 {[%clk 0:04:13.5]} 16... Bxg4
{[%clk 0:04:09.9]} 17. Nxg4 {[%clk 0:04:12.3]} 17... Bf4 {[%clk 0:04:06.6]} 18.
g3 {[%clk 0:04:04.2]} 18... Bd6 {[%clk 0:04:00.4]} 19. O-O {[%clk 0:04:01.5]}
19... Rg6 {[%clk 0:03:56.2]} 20. Rad1 {[%clk 0:03:41.2]} 20... f5 {[%clk
0:03:53.4]} 21. Ne3 {[%clk 0:03:33.7]} 21... Rxh6 {[%clk 0:03:48.3]} 22. Nxf5
{[%clk 0:03:32.5]} 22... Rf6 {[%clk 0:03:47.2]} 23. Nxd6+ {[%clk 0:03:30.3]}
23... Rdxd6 {[%clk 0:03:45.3]} 24. Rxd6 {[%clk 0:03:28.3]} 24... cxd6 {[%clk
0:03:44.9]} 25. Re1 {[%clk 0:03:26.4]} 25... e5 {[%clk 0:03:43.8]} 26. Kg2
{[%clk 0:03:23.9]} 26... h5 {[%clk 0:03:41.6]} 27. h4 {[%clk 0:03:22]} 27... g4
{[%clk 0:03:40.8]} 28. Re3 {[%clk 0:03:17.8]} 28... Kd7 {[%clk 0:03:39.2]} 29.
a3 {[%clk 0:03:11]} 29... a5 {[%clk 0:03:27.1]} 30. Re4 {[%clk 0:03:06.5]} 30...
d5 {[%clk 0:03:23.8]} 31. Re3 {[%clk 0:03:02.6]} 31... Kd6 {[%clk 0:03:23.2]}
32. b4 {[%clk 0:03:00.3]} 32... d4 {[%clk 0:03:18.1]} 33. cxd4 {[%clk 0:02:59]}
33... exd4 {[%clk 0:03:18]} 34. Rd3 {[%clk 0:02:55.3]} 34... Kd5 {[%clk
0:03:15.5]} 35. b5 {[%clk 0:02:52.1]} 35... Ne5 {[%clk 0:03:14.3]} 36. Rd2
{[%clk 0:02:48.3]} 36... Nc4 {[%clk 0:03:12.6]} 37. Rd3 {[%clk 0:02:46.2]} 37...
Ke4 {[%clk 0:03:11.3]} 38. Rd1 {[%clk 0:02:40.2]} 38... d3 {[%clk 0:03:09.3]}
39. b6 {[%clk 0:02:37.7]} 39... d2 {[%clk 0:03:06.9]} 40. Rb1 {[%clk 0:02:34.9]}
40... Rxb6 {[%clk 0:03:04.8]} 41. Rxb6 {[%clk 0:02:32.5]} 41... Nxb6 {[%clk
0:03:04.7]} 0-1